[Event "XIV Closed IM BCC 2021"]
[Site "Barcelona"]
[Date "2021.05.05"]
[Round "3.5"]
[White "Munoz, Miguel"]
[Black "Ryan, Joseph"]
[Result "1/2-1/2"]
[ECO "C06"]
[WhiteElo "2462"]
[BlackElo "2271"]
[Annotator "ChessBase"]
[PlyCount "55"]
[EventDate "2021.05.03"]
[EventType "tourn"]
[EventCountry "ESP"]
[SourceTitle "playchess.com"]
[Source "ChessBase"]
[SourceQuality "1"]
[TimeControl "5400+30"]

1. e4 {[%emt 0:03:08]} e6 {[%emt 0:00:00]} 2. d4 {[%emt 0:00:34]} d5 {[%emt 0:00:00]} 3. Nd2 {[%emt 0:00:05]} Nf6 {[%emt 0:00:01]} 4. e5 {[%emt 0:00:11]} Nfd7 {[%emt 0:00:08]} 5. Bd3 {[%emt 0:00:08]} c5 {[%emt 0:00:23]} 6. c3 {[%emt 0:00:10]} Nc6 {[%emt 0:00:19]} 7. Ne2 {[%emt 0:00:07]} cxd4 {[%emt 0:00:34]} 8. cxd4 {[%emt 0:00:05]} f6 {[%emt 0:00:21]} 9. exf6 {[%emt 0:00:09]} Nxf6 {[%emt 0:00:14]} 10. O-O {[%emt 0:00:15]} Bd6 {[%emt 0:00:14]} 11. f4 {[%emt 0:01:01]} Qb6 {[%emt 0:01:57]} 12. Nf3 {[%emt 0:00:08]} O-O {[%emt 0:00:33]} 13. Kh1 {[%emt 0:00:16]} Bd7 {[%emt 0:01:12]} 14. Nc3 {[%emt 0:00:07]} Rac8 {[%emt 0:01:18]} 15. a3 {[%emt 0:00:34]} Ne7 {[%emt 0:00:55]} 16. Ne5 {[%emt 0:07:05]} Be8 {[%emt 0:03:39]} 17. Qf3 {[%emt 0:03:10]} Bxe5 {[%emt 0:01:46]} 18. dxe5 {[%emt 0:01:04]} Nd7 {[%emt 0:00:26]} 19. Qe2 {[%emt 0:06:03]} Bg6 {[%emt 0:06:03]} 20. Bb5 {[%emt 0:01:10]} Nc5 {[%emt 0:16:56]} 21. Be3 {[%emt 0:01:32]} Qd8 {[%emt 0:00:37]} 22. Rad1 {[%emt 0:01:37]} Nf5 {[%emt 0:21:44]} 23. Bf2 {[%emt 0:06:38]} a6 {[%emt 0:05:18]} 24. Bc4 {[%emt 0:03:07]} Kh8 {[%emt 0:08:36]} 25. Ba2 {[%emt 0:03:35]} Ne7 {[%emt 0:01:47]} 26. Bd4 {[%emt 0:21:59]} Ne4 {[%emt 0:02:53]} 27. Kg1 {[%emt 0:06:56]} Qe8 {[%emt 0:02:33]} 28. g4 {[%emt 0:05:51]} 1/2-1/2

[Event "XIV Closed IM BCC 2021"]
[Site "Barcelona"]
[Date "2021.05.06"]
[Round "4.2"]
[White "Benedetti, Julio"]
[Black "Munoz, Miguel"]
[Result "0-1"]
[ECO "B01"]
[WhiteElo "2282"]
[BlackElo "2462"]
[Annotator "RC"]
[PlyCount "58"]
[EventDate "2021.05.03"]
[EventType "tourn"]
[EventCountry "ESP"]
[SourceTitle "playchess.com"]
[Source "ChessBase"]
[SourceQuality "1"]
[TimeControl "5400+30"]

1. e4 {[%emt 0:00:00]} d5 {[%emt 0:13:57]} 2. exd5 {[%emt 0:00:00]} Qxd5 {[%emt 0:00:11]} 3. Nc3 {[%emt 0:00:00]} Qa5 {[%emt 0:00:06]} 4. d4 {[%emt 0:00:21]} Nf6 {[%emt 0:00:06]} 5. Bc4 {[%emt 0:00:36]} Bg4 {[%emt 0:00:52]} 6. f3 {[%emt 0:00:19]} Bd7 {[%emt 0:00:32]} 7. Bd2 {[%emt 0:10:53]} Qb6 {[%emt 0:01:03]} 8. Qe2 {[%emt 0:05:20]} Nc6 {[%emt 0:15:14]} 9. Na4 {[%emt 0:10:05]} Qxd4 {[%emt 0:00:16]} 10. Bc3 {[%emt 0:00:43]} Qh4+ {[%emt 0:01:32]} 11. g3 {[%emt 0:01:02]} Qg5 {[%emt 0:04:36]} 12. Rd1 {[%emt 0:16:02]} O-O-O {[%emt 0:08:17]} 13. Bxf7 {[%emt 0:07:09]} e5 {[%emt 0:00:45]} 14. Qc4 {[%emt 0:12:15]} Qe3+ {[%emt 0:07:30]} 15. Ne2 {[%emt 0:04:32]} Qxf3 {[%emt 0:04:13]} 16. Rf1 {[%emt 0:00:29]} Qe4 {[%emt 0:01:19]} 17. Qb3 {[%emt 0:02:17]} Be7 {[%emt 0:05:52]} 18. Rxd7 {[%emt 0:07:18]} Rxd7 {[%emt 0:03:01]} 19. Be6 {[%emt 0:00:20]} Rhd8 {[%emt 0:01:17]} 20. Bf5 {[%emt 0:02:57]} Qe3 {[%emt 0:02:21]} 21. Qf7 {[%emt 0:01:18]} b5 {[%emt 0:01:24]} 22. g4 {[%emt 0:02:56]} Ne4 {[%emt 0:01:22]} 23. Qd5 {[%emt 0:02:06]} Bh4+ {[%emt 0:00:45]} 24. Kd1 {[%emt 0:00:04]} bxa4 {[%emt 0:00:27]} 25. Nd4 {[%emt 0:05:03]} Nxc3+ {[%emt 0:07:02]} 26. bxc3 {[%emt 0:00:08]} Qxc3 {[%emt 0:02:53]} 27. Nb5 {[%emt 0:01:20]} Qc5 {[%emt 0:00:57]} 28. c4 {[%emt 0:01:31]} Nb4 {[%emt 0:02:01]} 29. Nxa7+ {[%emt 0:00:23]} Qxa7 {[%emt 0:00:28]} 0-1

[Event "XIV Closed IM BCC 2021"]
[Site "Barcelona"]
[Date "2021.05.07"]
[Round "5.1"]
[White "Dalaud, Dorian"]
[Black "Msellek, Ilyass"]
[Result "0-1"]
[ECO "B56"]
[WhiteElo "2306"]
[BlackElo "2342"]
[Annotator "NA"]
[PlyCount "76"]
[EventDate "2021.05.03"]
[EventType "tourn"]
[EventCountry "ESP"]
[SourceTitle "playchess.com"]
[Source "ChessBase"]
[SourceQuality "1"]
[TimeControl "5400+30"]

1. e4 {[%emt 0:00:00]} c5 {[%emt 0:00:36]} 2. Nf3 {[%emt 0:00:06]} d6 {[%emt 0:00:17]} 3. d4 {[%emt 0:00:11]} Nf6 {[%emt 0:01:03]} 4. Nc3 {[%emt 0:01:30]} cxd4 {[%emt 0:00:08]} 5. Nxd4 {[%emt 0:00:13]} Nc6 {[%emt 0:00:12]} 6. f3 {[%emt 0:13:42]} e5 {[%emt 0:02:15]} 7. Nb3 {[%emt 0:00:13]} Be6 {[%emt 0:00:55]} 8. Nd5 {[%emt 0:00:18]} Be7 {[%emt 0:12:22]} 9. c4 {[%emt 0:01:49]} O-O {[%emt 0:02:32]} 10. Be3 {[%emt 0:07:07]} Nd7 {[%emt 0:03:32]} 11. Be2 {[%emt 0:07:35]} a5 {[%emt 0:03:18]} 12. O-O {[%emt 0:02:11]} a4 {[%emt 0:02:38]} 13. Nd2 {[%emt 0:01:18]} Bg5 {[%emt 0:12:24]} 14. Bf2 {[%emt 0:00:59]} Qa5 {[%emt 0:04:06]} 15. Nb1 {[%emt 0:01:03]} Bxd5 {[%emt 0:10:15]} 16. exd5 {[%emt 0:05:49]} Nd4 {[%emt 0:01:33]} 17. Bxd4 {[%emt 0:02:22]} exd4 {[%emt 0:00:08]} 18. f4 {[%emt 0:00:19]} Bf6 {[%emt 0:01:58]} 19. Bd3 {[%emt 0:00:26]} Rfe8 {[%emt 0:02:17]} 20. Na3 {[%emt 0:02:45]} Nc5 {[%emt 0:02:13]} 21. Nc2 {[%emt 0:04:01]} h6 {[%emt 0:09:04]} 22. Rb1 {[%emt 0:13:46]} Re7 {[%emt 0:01:52]} 23. b4 {[%emt 0:01:16]} axb3 {[%emt 0:00:08]} 24. axb3 {[%emt 0:00:02]} Qc3 {[%emt 0:07:56]} 25. Rf3 {[%emt 0:02:37]} Re3 {[%emt 0:00:55]} 26. Nxe3 {[%emt 0:05:14]} dxe3 {[%emt 0:00:04]} 27. Bf1 {[%emt 0:02:38]} Bd4 {[%emt 0:07:10]} 28. Kh1 {[%emt 0:02:00]} Ra2 {[%emt 0:01:01]} 29. b4 {[%emt 0:08:04]} Ne4 {[%emt 0:01:19]} 30. Qd3 {[%emt 0:02:41]} Qxd3 {[%emt 0:02:20]} 31. Bxd3 {[%emt 0:00:05]} Nd2 {[%emt 0:03:02]} 32. Re1 {[%emt 0:03:36]} Nxf3 {[%emt 0:00:17]} 33. gxf3 {[%emt 0:00:02]} Rd2 {[%emt 0:00:19]} 34. Be2 {[%emt 0:01:50]} Rb2 {[%emt 0:01:38]} 35. Kg1 {[%emt 0:02:50]} Bc3 {[%emt 0:00:39]} 36. Rc1 {[%emt 0:00:02]} Bxb4 {[%emt 0:00:09]} 37. Kf1 {[%emt 0:00:06]} g6 {[%emt 0:00:26]} 38. Rd1 {[%emt 0:04:20]} Bc5 {[%emt 0:00:45]} 0-1

[Event "XIV Closed IM BCC 2021"]
[Site "Barcelona"]
[Date "2021.05.07"]
[Round "5.2"]
[White "Kuhn, Clement"]
[Black "Martin Barcelo, Carles"]
[Result "1-0"]
[ECO "E63"]
[WhiteElo "2252"]
[BlackElo "2201"]
[Annotator "NA"]
[PlyCount "99"]
[EventDate "2021.05.03"]
[EventType "tourn"]
[EventCountry "ESP"]
[SourceTitle "playchess.com"]
[Source "ChessBase"]
[SourceQuality "1"]
[TimeControl "5400+30"]

1. d4 {[%emt 0:00:00]} Nf6 {[%emt 0:02:27]} 2. Nf3 {[%emt 0:00:00]} g6 {[%emt 0:01:21]} 3. g3 {[%emt 0:00:00]} Bg7 {[%emt 0:00:06]} 4. Bg2 {[%emt 0:00:00]} O-O {[%emt 0:00:18]} 5. c4 {[%emt 0:00:00]} d6 {[%emt 0:02:03]} 6. Nc3 {[%emt 0:00:12]} Nc6 {[%emt 0:02:17]} 7. O-O {[%emt 0:00:21]} a6 {[%emt 0:00:35]} 8. h3 {[%emt 0:00:09]} Bd7 {[%emt 0:02:33]} 9. e4 {[%emt 0:00:06]} e5 {[%emt 0:00:33]} 10. d5 {[%emt 0:00:14]} Ne7 {[%emt 0:02:12]} 11. Ne1 {[%emt 0:01:54]} Ne8 {[%emt 0:05:54]} 12. Nd3 {[%emt 0:01:58]} c5 {[%emt 0:06:46]} 13. dxc6 {[%emt 0:04:42]} Nxc6 {[%emt 0:01:22]} 14. Be3 {[%emt 0:04:06]} Nc7 {[%emt 0:10:00]} 15. Bb6 {[%emt 0:05:42]} Qc8 {[%emt 0:01:57]} 16. Nd5 {[%emt 0:02:46]} Ne6 {[%emt 0:02:33]} 17. c5 {[%emt 0:02:38]} dxc5 {[%emt 0:15:02]} 18. Bxc5 {[%emt 0:02:53]} Nxc5 {[%emt 0:10:51]} 19. Nxc5 {[%emt 0:04:59]} Be6 {[%emt 0:09:37]} 20. Nb6 {[%emt 0:00:13]} Qc7 {[%emt 0:00:12]} 21. Nxa8 {[%emt 0:00:07]} Rxa8 {[%emt 0:00:03]} 22. Nxe6 {[%emt 0:03:14]} fxe6 {[%emt 0:00:11]} 23. Rc1 {[%emt 0:00:11]} Qe7 {[%emt 0:01:54]} 24. Qb3 {[%emt 0:02:54]} Bh6 {[%emt 0:01:16]} 25. Rc3 {[%emt 0:10:19]} Rf8 {[%emt 0:01:35]} 26. Qb6 {[%emt 0:03:13]} Rd8 {[%emt 0:01:36]} 27. Bf3 {[%emt 0:02:52]} Bd2 {[%emt 0:02:00]} 28. Rxc6 {[%emt 0:15:13]} bxc6 {[%emt 0:00:07]} 29. Qxc6 {[%emt 0:00:14]} a5 {[%emt 0:08:43]} 30. Bd1 {[%emt 0:03:47]} Kf7 {[%emt 0:02:28]} 31. Bb3 {[%emt 0:00:08]} h5 {[%emt 0:01:54]} 32. Rd1 {[%emt 0:01:28]} Rd6 {[%emt 0:00:25]} 33. Qc5 {[%emt 0:01:16]} h4 {[%emt 0:04:15]} 34. Qxe5 {[%emt 0:01:57]} hxg3 35. Rxd2 {[%emt 0:01:03]} Rxd2 {[%emt 0:00:17]} 36. Qf4+ {[%emt 0:00:06]} Kg7 {[%emt 0:00:46]} 37. Qxd2 {[%emt 0:00:05]} gxf2+ {[%emt 0:01:36]} 38. Qxf2 {[%emt 0:00:02]} Qg5+ {[%emt 0:00:08]} 39. Kh1 {[%emt 0:00:05]} Qc1+ {[%emt 0:00:07]} 40. Kh2 {[%emt 0:00:09]} Qc7+ {[%emt 0:00:09]} 41. Qg3 {[%emt 0:00:17]} Qc1 {[%emt 0:00:34]} 42. Qe5+ {[%emt 0:00:28]} Kh7 {[%emt 0:00:28]} 43. Qxe6 {[%emt 0:01:55]} Qd2+ {[%emt 0:01:08]} 44. Kg3 {[%emt 0:00:07]} Qe3+ {[%emt 0:01:06]} 45. Kg4 {[%emt 0:00:10]} Kh6 {[%emt 0:00:31]} 46. Qf6 {[%emt 0:02:11]} Qg1+ {[%emt 0:00:19]} 47. Kf4 {[%emt 0:00:22]} Qh2+ {[%emt 0:00:42]} 48. Ke3 {[%emt 0:00:25]} Qg1+ {[%emt 0:00:32]} 49. Qf2 {[%emt 0:00:34]} Qc1+ {[%emt 0:00:05]} 50. Qd2 {[%emt 0:00:10]} 1-0

[Event "XIV Closed IM BCC 2021"]
[Site "Barcelona"]
[Date "2021.05.07"]
[Round "5.3"]
[White "Perez Perez, Gabriel"]
[Black "Boyer, Mahel"]
[Result "0-1"]
[ECO "B00"]
[WhiteElo "2079"]
[BlackElo "2333"]
[Annotator "NA"]
[PlyCount "108"]
[EventDate "2021.05.03"]
[EventType "tourn"]
[EventCountry "ESP"]
[SourceTitle "playchess.com"]
[Source "ChessBase"]
[SourceQuality "1"]
[TimeControl "5400+30"]

1. e4 {[%emt 0:00:00]} Nc6 {[%emt 0:03:09]} 2. Nf3 {[%emt 0:02:56]} d6 {[%emt 0:00:14]} 3. d4 {[%emt 0:00:31]} Nf6 {[%emt 0:00:04]} 4. Nc3 {[%emt 0:02:58]} g6 {[%emt 0:00:04]} 5. h3 {[%emt 0:07:58]} Bg7 {[%emt 0:00:28]} 6. Be2 {[%emt 0:00:17]} O-O {[%emt 0:00:06]} 7. Bg5 {[%emt 0:04:01]} a6 {[%emt 0:00:36]} 8. O-O {[%emt 0:06:45]} b5 {[%emt 0:05:07]} 9. Qd3 h6 {[%emt 0:03:52]} 10. Bf4 {[%emt 0:18:48]} e6 {[%emt 0:05:02]} 11. Rad1 {[%emt 0:04:50]} Qe7 {[%emt 0:09:06]} 12. e5 {[%emt 0:04:21]} dxe5 {[%emt 0:06:12]} 13. dxe5 {[%emt 0:06:04]} Nd7 {[%emt 0:00:16]} 14. Qe3 {[%emt 0:00:09]} g5 {[%emt 0:00:29]} 15. Bg3 {[%emt 0:01:33]} Bb7 {[%emt 0:00:09]} 16. a4 {[%emt 0:09:25]} b4 {[%emt 0:18:58]} 17. Ne4 {[%emt 0:00:09]} Rfd8 {[%emt 0:00:03]} 18. b3 {[%emt 0:09:33]} Rab8 {[%emt 0:13:56]} 19. Rxd7 {[%emt 0:04:35]} Qxd7 {[%emt 0:03:42]} 20. Nc5 {[%emt 0:00:26]} Qc8 {[%emt 0:01:02]} 21. h4 {[%emt 0:02:07]} g4 {[%emt 0:00:57]} 22. Nh2 {[%emt 0:00:13]} Nd4 {[%emt 0:02:34]} 23. Nxg4 {[%emt 0:05:08]} Nf5 {[%emt 0:01:20]} 24. Qc1 {[%emt 0:00:25]} Rd4 {[%emt 0:01:04]} 25. Nxb7 {[%emt 0:01:01]} Qxb7 {[%emt 0:00:49]} 26. Bf3 {[%emt 0:00:55]} Qb6 {[%emt 0:00:13]} 27. Bf4 {[%emt 0:01:36]} h5 {[%emt 0:09:04]} 28. Nf6+ {[%emt 0:01:49]} Bxf6 {[%emt 0:01:01]} 29. exf6 {[%emt 0:00:01]} Nxh4 {[%emt 0:02:11]} 30. Be5 {[%emt 0:02:15]} Kh7 {[%emt 0:00:10]} 31. Qe3 {[%emt 0:01:31]} Nxf3+ {[%emt 0:01:31]} 32. Qxf3 {[%emt 0:00:01]} Rg4 {[%emt 0:00:08]} 33. Qd3+ {[%emt 0:01:19]} Kg8 {[%emt 0:02:32]} 34. Qd7 {[%emt 0:01:52]} Rf8 {[%emt 0:03:19]} 35. Rd1 {[%emt 0:00:51]} Qb7 {[%emt 0:00:17]} 36. g3 {[%emt 0:00:10]} Qe4 {[%emt 0:00:45]} 37. Bxc7 {[%emt 0:00:01]} h4 {[%emt 0:00:07]} 38. Qd3 {[%emt 0:01:26]} Rc8 {[%emt 0:01:26]} 39. f3 {[%emt 0:00:58]} Qxd3 {[%emt 0:00:13]} 40. Rxd3 {[%emt 0:00:27]} Rg6 {[%emt 0:00:02]} 41. Be5 {[%emt 0:00:29]} hxg3 {[%emt 0:00:06]} 42. Rd2 {[%emt 0:00:13]} g2 {[%emt 0:00:09]} 43. f4 {[%emt 0:00:38]} Rc5 {[%emt 0:00:32]} 44. Rxg2 {[%emt 0:00:42]} Rxc2 {[%emt 0:00:42]} 45. Rxg6+ {[%emt 0:00:16]} fxg6 {[%emt 0:00:02]} 46. Kf1 {[%emt 0:00:01]} Rc1+ {[%emt 0:00:11]} 47. Ke2 {[%emt 0:00:01]} Rb1 {[%emt 0:00:07]} 48. Kd3 {[%emt 0:00:02]} Rxb3+ {[%emt 0:00:05]} 49. Kc4 {[%emt 0:00:07]} Rb1 {[%emt 0:00:05]} 50. a5 {[%emt 0:00:11]} Kf7 {[%emt 0:00:06]} 51. Kc5 {[%emt 0:01:03]} b3 {[%emt 0:00:04]} 52. Kb6 {[%emt 0:00:05]} Re1 {[%emt 0:00:12]} 53. Bd4 {[%emt 0:01:00]} Re4 {[%emt 0:00:03]} 54. Bc3 {[%emt 0:00:16]} Rb4+ {[%emt 0:00:02]} 0-1

[Event "XIV Closed IM BCC 2021"]
[Site "Barcelona"]
[Date "2021.05.07"]
[Round "5.4"]
[White "Munoz, Miguel"]
[Black "Asis Gargatagli, Hipolito"]
[Result "1/2-1/2"]
[ECO "C65"]
[WhiteElo "2462"]
[BlackElo "2454"]
[Annotator "ChessBase"]
[PlyCount "20"]
[EventDate "2021.05.03"]
[EventType "tourn"]
[EventCountry "ESP"]
[SourceTitle "playchess.com"]
[Source "ChessBase"]
[SourceQuality "1"]
[TimeControl "5400+30"]

1. e4 {[%emt 0:07:52]} e5 {[%emt 0:00:00]} 2. Nf3 {[%emt 0:00:09]} Nc6 {[%emt 0:00:00]} 3. Bb5 {[%emt 0:00:51]} Nf6 {[%emt 0:00:00]} 4. Bxc6 {[%emt 0:01:31]} dxc6 {[%emt 0:00:00]} 5. d3 {[%emt 0:00:11]} Nd7 {[%emt 0:00:08]} 6. Nbd2 {[%emt 0:00:23]} Be7 {[%emt 0:00:23]} 7. Nf1 {[%emt 0:00:49]} f6 {[%emt 0:00:35]} 8. Ng3 {[%emt 0:00:10]} Nc5 {[%emt 0:00:28]} 9. Be3 {[%emt 0:00:32]} O-O {[%emt 0:00:22]} 10. O-O {[%emt 0:00:10]} a5 {[%emt 0:00:13]} 1/2-1/2

[Event "XIV Closed IM BCC 2021"]
[Site "Barcelona"]
[Date "2021.05.07"]
[Round "5.5"]
[White "Ryan, Joseph"]
[Black "Benedetti, Julio"]
[Result "0-1"]
[ECO "A09"]
[WhiteElo "2271"]
[BlackElo "2282"]
[Annotator "NA"]
[PlyCount "94"]
[EventDate "2021.05.03"]
[EventType "tourn"]
[EventCountry "ESP"]
[SourceTitle "playchess.com"]
[Source "ChessBase"]
[SourceQuality "1"]
[TimeControl "5400+30"]

1. Nf3 {[%emt 0:00:00]} d5 2. c4 dxc4 {[%emt 0:03:19]} 3. Na3 {[%emt 0:01:45]} a6 {[%emt 0:00:12]} 4. Nxc4 {[%emt 0:00:38]} b5 {[%emt 0:00:04]} 5. Nce5 {[%emt 0:07:50]} f6 {[%emt 0:01:16]} 6. Nd3 {[%emt 0:06:44]} e5 {[%emt 0:00:38]} 7. e4 {[%emt 0:01:10]} Qd7 {[%emt 0:07:11]} 8. Nh4 {[%emt 0:16:59]} g6 {[%emt 0:07:27]} 9. Qe2 {[%emt 0:10:07]} Nc6 {[%emt 0:02:01]} 10. Nf3 {[%emt 0:00:27]} Bb7 {[%emt 0:00:31]} 11. b3 {[%emt 0:04:27]} Nd8 {[%emt 0:21:13]} 12. Bb2 {[%emt 0:01:53]} Ne6 {[%emt 0:00:16]} 13. g3 {[%emt 0:10:42]} Rd8 {[%emt 0:02:57]} 14. Nc1 {[%emt 0:02:05]} Qc6 {[%emt 0:01:35]} 15. Bg2 {[%emt 0:01:44]} Qxe4 {[%emt 0:05:01]} 16. O-O {[%emt 0:06:08]} Bh6 {[%emt 0:06:06]} 17. Qxe4 {[%emt 0:08:09]} Bxe4 {[%emt 0:00:18]} 18. d3 {[%emt 0:01:32]} Bd5 {[%emt 0:03:08]} 19. Re1 {[%emt 0:01:19]} Ne7 {[%emt 0:01:46]} 20. Rd1 {[%emt 0:01:56]} Nc6 {[%emt 0:03:13]} 21. Ne2 {[%emt 0:00:35]} Nb4 {[%emt 0:00:26]} 22. Ne1 {[%emt 0:02:11]} c5 {[%emt 0:06:16]} 23. f4 {[%emt 0:02:40]} Bxg2 {[%emt 0:00:05]} 24. Kxg2 {[%emt 0:00:11]} Nd5 {[%emt 0:00:04]} 25. Kf3 {[%emt 0:01:55]} O-O {[%emt 0:02:02]} 26. Ng2 {[%emt 0:01:21]} Rd7 {[%emt 0:04:00]} 27. Rd2 {[%emt 0:04:31]} Rfd8 {[%emt 0:00:37]} 28. Rad1 {[%emt 0:00:54]} Nb4 {[%emt 0:00:12]} 29. Ne1 {[%emt 0:00:14]} Nxa2 {[%emt 0:00:43]} 30. Bxe5 {[%emt 0:00:17]} fxe5 {[%emt 0:00:49]} 31. Rxa2 {[%emt 0:00:05]} exf4 {[%emt 0:00:40]} 32. Rxa6 {[%emt 0:02:01]} Ng5+ {[%emt 0:08:25]} 33. Kxf4 {[%emt 0:01:48]} Nh3+ {[%emt 0:00:33]} 34. Kf3 {[%emt 0:00:26]} Rf8+ {[%emt 0:00:25]} 35. Kg2 {[%emt 0:00:33]} Nf2 {[%emt 0:00:05]} 36. Rda1 {[%emt 0:00:29]} Nxd3 {[%emt 0:00:12]} 37. Nf3 {[%emt 0:01:22]} Re7 {[%emt 0:00:30]} 38. Neg1 {[%emt 0:00:31]} b4 {[%emt 0:01:25]} 39. Ra8 {[%emt 0:00:54]} Nc1 {[%emt 0:00:41]} 40. Rxf8+ {[%emt 0:00:11]} Kxf8 {[%emt 0:00:01]} 41. Rb1 {[%emt 0:00:15]} Ke8 {[%emt 0:02:05]} 42. h4 {[%emt 0:01:03]} Be3 {[%emt 0:02:09]} 43. Rb2 {[%emt 0:00:22]} Bxg1 {[%emt 0:01:45]} 44. Nxg1 {[%emt 0:00:37]} Re3 {[%emt 0:00:11]} 45. Rc2 {[%emt 0:00:52]} Rc3 {[%emt 0:01:17]} 46. Rxc3 {[%emt 0:00:34]} bxc3 {[%emt 0:00:05]} 47. Nf3 {[%emt 0:00:22]} Nd3 {[%emt 0:00:11]} 0-1

[Event "XIV Closed IM BCC 2021"]
[Site "Barcelona"]
[Date "2021.05.09"]
[Round "6.1"]
[White "Msellek, Ilyass"]
[Black "Benedetti, Julio"]
[Result "1-0"]
[ECO "B30"]
[WhiteElo "2342"]
[BlackElo "2282"]
[Annotator "NA"]
[PlyCount "73"]
[EventDate "2021.05.03"]
[EventType "tourn"]
[EventCountry "ESP"]
[SourceTitle "playchess.com"]
[Source "ChessBase"]
[SourceQuality "1"]
[TimeControl "5400+30"]

1. e4 c5 2. Nf3 Nc6 3. b4 cxb4 4. d4 d5 5. exd5 Qxd5 6. c4 Qe4+ 7. Be3 Bf5 8. Nbd2 Qc2 9. Qxc2 Bxc2 10. d5 Na5 11. Be2 Bf5 12. Nb3 Nxb3 13. axb3 a6 14. c5 Rd8 15. c6 Bc8 16. Bb6 Rxd5 17. cxb7 Bxb7 18. Bxa6 Bxa6 19. Rxa6 f6 20. Ke2 Kf7 21. Rc1 e5 22. Rc7+ Be7 23. Raa7 Ke6 24. Rc8 g6 25. Raa8 Kf7 26. Nd2 h5 27. Nc4 Kg7 28. Be3 f5 29. Nb6 Rb5 30. f3 h4 31. h3 Bf6 32. Kd3 e4+ 33. Kc4 Re5 34. f4 Re6 35. Nd5 Bb2 36. Ra2 Ne7 37. Rxh8 1-0

[Event "XIV Closed IM BCC 2021"]
[Site "Barcelona"]
[Date "2021.05.09"]
[Round "6.2"]
[White "Asis Gargatagli, Hipolito"]
[Black "Ryan, Joseph"]
[Result "1-0"]
[ECO "C05"]
[WhiteElo "2454"]
[BlackElo "2271"]
[Annotator "ChessBase"]
[PlyCount "71"]
[EventDate "2021.05.03"]
[EventType "tourn"]
[EventCountry "ESP"]
[SourceTitle "playchess.com"]
[Source "ChessBase"]
[SourceQuality "1"]
[TimeControl "5400+30"]

1. e4 {[%emt 0:00:15]} e6 {[%emt 0:03:04]} 2. d4 {[%emt 0:00:09]} d5 {[%emt 0:00:14]} 3. Nd2 {[%emt 0:00:12]} Nf6 {[%emt 0:00:15]} 4. e5 {[%emt 0:00:13]} Nfd7 {[%emt 0:00:06]} 5. Ngf3 {[%emt 0:00:10]} c5 {[%emt 0:00:14]} 6. c3 {[%emt 0:00:04]} Nc6 {[%emt 0:00:14]} 7. Bd3 {[%emt 0:00:11]} cxd4 {[%emt 0:02:21]} 8. cxd4 {[%emt 0:00:04]} a5 {[%emt 0:00:16]} 9. O-O {[%emt 0:01:00]} a4 {[%emt 0:02:43]} 10. Nb1 {[%emt 0:00:21]} Be7 {[%emt 0:01:11]} 11. Nc3 {[%emt 0:01:20]} Nb6 {[%emt 0:03:36]} 12. a3 {[%emt 0:07:31]} Bd7 {[%emt 0:00:36]} 13. Bc2 h6 {[%emt 0:02:18]} 14. Re1 {[%emt 0:10:10]} Na5 {[%emt 0:02:38]} 15. Nd2 {[%emt 0:10:45]} Bc6 {[%emt 0:11:15]} 16. Qg4 {[%emt 0:08:11]} Bf8 {[%emt 0:09:53]} 17. Re3 {[%emt 0:04:06]} Qd7 {[%emt 0:06:50]} 18. Rb1 {[%emt 0:05:23]} Nbc4 {[%emt 0:05:39]} 19. Rf3 {[%emt 0:09:47]} b5 {[%emt 0:03:40]} 20. Na2 {[%emt 0:06:03]} Rc8 {[%emt 0:01:18]} 21. Qh5 {[%emt 0:06:08]} g6 {[%emt 0:02:05]} 22. Bxg6 {[%emt 0:00:50]} fxg6 {[%emt 0:00:47]} 23. Qxg6+ {[%emt 0:00:04]} Kd8 {[%emt 0:01:06]} 24. Qf6+ {[%emt 0:03:59]} Kc7 {[%emt 0:00:07]} 25. Qxh8 {[%emt 0:00:04]} Bxa3 {[%emt 0:01:19]} 26. Qxh6 {[%emt 0:00:49]} Be7 {[%emt 0:00:16]} 27. Rf7 {[%emt 0:02:51]} Bb7 {[%emt 0:06:57]} 28. Qg7 {[%emt 0:04:04]} Re8 {[%emt 0:00:27]} 29. Nf3 {[%emt 0:02:51]} Nc6 {[%emt 0:00:14]} 30. Bg5 {[%emt 0:00:16]} Kb6 {[%emt 0:02:33]} 31. Nb4 {[%emt 0:00:41]} N4a5 {[%emt 0:02:07]} 32. Rc1 {[%emt 0:01:01]} Rc8 {[%emt 0:04:37]} 33. Nxc6 {[%emt 0:01:07]} Nxc6 {[%emt 0:00:14]} 34. h4 {[%emt 0:00:22]} b4 {[%emt 0:00:50]} 35. Rxc6+ {[%emt 0:01:29]} Qxc6 {[%emt 0:00:25]} 36. Bxe7 {[%emt 0:00:16]} 1-0

[Event "XIV Closed IM BCC 2021"]
[Site "Barcelona"]
[Date "2021.05.09"]
[Round "6.3"]
[White "Boyer, Mahel"]
[Black "Munoz, Miguel"]
[Result "1/2-1/2"]
[ECO "D37"]
[WhiteElo "2333"]
[BlackElo "2462"]
[Annotator "ChessBase"]
[PlyCount "52"]
[EventDate "2021.05.03"]
[EventType "tourn"]
[EventCountry "ESP"]
[SourceTitle "playchess.com"]
[Source "ChessBase"]
[SourceQuality "1"]
[TimeControl "5400+30"]

1. d4 {[%emt 0:00:00]} d5 {[%emt 0:09:37]} 2. c4 {[%emt 0:00:06]} e6 {[%emt 0:00:07]} 3. Nc3 {[%emt 0:00:47]} Nf6 {[%emt 0:00:08]} 4. Nf3 {[%emt 0:00:21]} Be7 {[%emt 0:00:19]} 5. g3 {[%emt 0:00:20]} O-O {[%emt 0:02:55]} 6. Bg2 {[%emt 0:00:39]} b6 {[%emt 0:01:57]} 7. O-O {[%emt 0:04:32]} Bb7 {[%emt 0:00:51]} 8. Ne5 {[%emt 0:00:15]} Ne4 {[%emt 0:07:42]} 9. Qc2 {[%emt 0:19:07]} Nxc3 {[%emt 0:02:52]} 10. bxc3 {[%emt 0:00:24]} Nd7 {[%emt 0:01:19]} 11. cxd5 {[%emt 0:01:07]} Bxd5 {[%emt 0:03:16]} 12. Nc6 {[%emt 0:10:20]} Qe8 {[%emt 0:01:10]} 13. Nxe7+ {[%emt 0:05:39]} Qxe7 {[%emt 0:00:20]} 14. e4 {[%emt 0:00:05]} Bb7 {[%emt 0:03:50]} 15. Bb2 {[%emt 0:15:12]} c5 {[%emt 0:02:31]} 16. Rad1 {[%emt 0:06:13]} cxd4 {[%emt 0:08:54]} 17. cxd4 {[%emt 0:00:09]} Qb4 {[%emt 0:00:25]} 18. a3 {[%emt 0:07:19]} Qb5 {[%emt 0:02:10]} 19. d5 {[%emt 0:01:19]} Nc5 {[%emt 0:09:00]} 20. Rfe1 {[%emt 0:04:15]} Rfe8 {[%emt 0:03:34]} 21. Qc3 {[%emt 0:06:01]} e5 {[%emt 0:02:40]} 22. Qb4 {[%emt 0:07:02]} Ba6 {[%emt 0:04:46]} 23. Re3 {[%emt 0:00:17]} Qd7 {[%emt 0:01:32]} 24. f4 {[%emt 0:05:12]} f6 {[%emt 0:01:27]} 25. Qe1 {[%emt 0:00:30]} Qd6 {[%emt 0:00:45]} 26. f5 {[%emt 0:03:07]} Rac8 {[%emt 0:01:13]} 1/2-1/2